[Event "Mistrovství Čech mládeže 2023 - HD16"]
[Site "Harrachov, Czech Republic"]
[Date "2023.10.28"]
[Round "9.12"]
[White "Sadil, Antonín"]
[Black "Lána, Vincent"]
[Result "0-1"]
[TimeControl "90m + 30s"]
[WhiteElo "1792"]
[BlackElo "1342"]

1. e4 {[%clk 01:28:02]} {[%emt 00:02:57]} e6 {[%clk 01:30:52]} {[%emt
00:00:09]} 2. d4 {[%clk 01:28:12]} {[%emt 00:00:20]} d5 {[%clk 01:31:13]}
{[%emt 00:00:09]} 3. Nd2 {[%clk 01:28:35]} {[%emt 00:00:07]} dxe4 {[%clk
01:31:31]} {[%emt 00:00:12]} 4. Nxe4 {[%clk 01:28:57]} {[%emt 00:00:08]} Bd7
{[%clk 01:31:53]} {[%emt 00:00:08]} 5. Bd3 {[%clk 01:29:06]} {[%emt 00:00:22]}
Bc6 {[%clk 01:32:12]} {[%emt 00:00:11]} 6. Nf3 {[%clk 01:28:53]} {[%emt
00:00:43]} Nd7 {[%clk 01:32:31]} {[%emt 00:00:11]} 7. O-O {[%clk 01:28:48]}
{[%emt 00:00:34]} Ngf6 {[%clk 01:32:38]} {[%emt 00:00:23]} 8. Nxf6+ {[%clk
01:28:02]} {[%emt 00:01:16]} Nxf6 {[%clk 01:32:53]} {[%emt 00:00:15]} 9. c3
{[%clk 01:28:21]} {[%emt 00:00:12]} Bd6 {[%clk 01:33:05]} {[%emt 00:00:17]} 10.
Re1 {[%clk 01:27:23]} {[%emt 00:01:28]} h6 {[%clk 01:29:59]} {[%emt 00:03:36]}
11. Ne5 {[%clk 01:27:20]} {[%emt 00:00:32]} O-O {[%clk 01:26:54]} {[%emt
00:03:35]} 12. Nxc6 {[%clk 01:27:28]} {[%emt 00:00:22]} bxc6 {[%clk 01:27:18]}
{[%emt 00:00:07]} 13. Qf3 {[%clk 01:26:57]} {[%emt 00:01:00]} c5 {[%clk
01:26:16]} {[%emt 00:01:32]} 14. Be3 {[%clk 01:24:59]} {[%emt 00:02:27]} cxd4
{[%clk 01:24:47]} {[%emt 00:02:00]} 15. Bxd4 {[%clk 01:25:10]} {[%emt
00:00:19]} c5 {[%clk 01:23:22]} {[%emt 00:01:55]} 16. Be5 {[%clk 01:23:10]}
{[%emt 00:02:28]} Bxe5 {[%clk 01:21:00]} {[%emt 00:02:54]} 17. Rxe5 {[%clk
01:23:23]} {[%emt 00:00:17]} Qc7 {[%clk 01:20:28]} {[%emt 00:01:01]} 18. Re2
{[%clk 01:18:00]} {[%emt 00:05:52]} Rfd8 {[%clk 01:20:20]} {[%emt 00:00:40]} 19.
Bc2 {[%clk 01:14:32]} {[%emt 00:03:56]} Rab8 {[%clk 01:15:38]} {[%emt
00:05:13]} 20. b3 {[%clk 01:12:39]} {[%emt 00:02:23]} Rd6 {[%clk 01:14:35]}
{[%emt 00:01:34]} 21. Rd1 {[%clk 01:11:55]} {[%emt 00:01:13]} Rxd1+ {[%clk
01:14:14]} {[%emt 00:00:51]} 22. Bxd1 {[%clk 01:12:22]} {[%emt 00:00:03]} Rd8
{[%clk 01:14:25]} {[%emt 00:00:18]} 23. Bc2 {[%clk 01:12:01]} {[%emt 00:00:52]}
Rd6 {[%clk 01:12:06]} {[%emt 00:02:48]} 24. h3 {[%clk 01:09:03]} {[%emt
00:03:28]} Kf8 {[%clk 01:10:53]} {[%emt 00:01:44]} 25. Qe3 {[%clk 01:03:52]}
{[%emt 00:05:35]} Qa5 {[%clk 01:07:17]} {[%emt 00:04:11]} 26. Qg3 {[%clk
00:59:38]} {[%emt 00:04:44]} Rd8 {[%clk 01:06:46]} {[%emt 00:01:02]} 27. a4
{[%clk 00:58:03]} {[%emt 00:02:05]} Nd5 {[%clk 01:02:12]} {[%emt 00:05:04]} 28.
Rd2 {[%clk 00:56:28]} {[%emt 00:02:05]} Nf6 {[%clk 00:58:12]} {[%emt 00:04:30]}
29. b4 {[%clk 00:51:49]} {[%emt 00:05:10]} cxb4 {[%clk 00:55:49]} {[%emt
00:02:52]} 30. cxb4 {[%clk 00:51:59]} {[%emt 00:00:21]} Qb6 {[%clk 00:55:28]}
{[%emt 00:00:51]} 31. a5 {[%clk 00:49:11]} {[%emt 00:03:19]} Qb8 {[%clk
00:54:40]} {[%emt 00:01:17]} 32. b5 {[%clk 00:47:47]} {[%emt 00:01:54]} Qxg3
{[%clk 00:53:34]} {[%emt 00:01:35]} 33. Rxd8+ {[%clk 00:47:41]} {[%emt
00:00:37]} Ke7 {[%clk 00:53:57]} {[%emt 00:00:06]} 34. Re8+ {[%clk 00:47:06]}
{[%emt 00:01:06]} Nxe8 {[%clk 00:50:57]} {[%emt 00:03:30]} 35. fxg3 {[%clk
00:47:32]} {[%emt 00:00:03]} Kd6 {[%clk 00:50:38]} {[%emt 00:00:49]} 36. Ba4
{[%clk 00:47:00]} {[%emt 00:01:04]} Nf6 {[%clk 00:49:45]} {[%emt 00:01:22]} 37.
Bd1 {[%clk 00:44:57]} {[%emt 00:02:32]} Ne8 {[%clk 00:36:59]} {[%emt 00:13:16]}
38. Bf3 {[%clk 00:43:43]} {[%emt 00:01:44]} Nc7 {[%clk 00:32:44]} {[%emt
00:04:45]} 39. Be2 {[%clk 00:42:33]} {[%emt 00:01:40]} Kc5 {[%clk 00:29:57]}
{[%emt 00:03:17]} 40. b6 {[%clk 00:42:49]} {[%emt 00:00:14]} axb6 {[%clk
00:30:02]} {[%emt 00:00:25]} 41. axb6 {[%clk 00:43:00]} {[%emt 00:00:19]} Kxb6
{[%clk 00:30:23]} {[%emt 00:00:09]} 42. Kf2 {[%clk 00:43:10]} {[%emt 00:00:20]}
Kc5 {[%clk 00:30:02]} {[%emt 00:00:51]} 43. h4 {[%clk 00:42:25]} {[%emt
00:01:15]} Nd5 {[%clk 00:29:05]} {[%emt 00:01:27]} 44. Kf3 {[%clk 00:42:00]}
{[%emt 00:00:53]} Kd4 {[%clk 00:29:09]} {[%emt 00:00:27]} 45. Bd1 {[%clk
00:41:11]} {[%emt 00:01:19]} e5 {[%clk 00:28:23]} {[%emt 00:01:16]} 46. Bc2
{[%clk 00:41:09]} {[%emt 00:00:31]} Nc3 {[%clk 00:28:14]} {[%emt 00:00:39]} 47.
g4 {[%clk 00:40:46]} {[%emt 00:00:54]} g5 {[%clk 00:26:38]} {[%emt 00:02:06]}
48. hxg5 {[%clk 00:40:26]} {[%emt 00:00:50]} hxg5 {[%clk 00:27:01]} {[%emt
00:00:07]} 49. Bf5 {[%clk 00:39:12]} {[%emt 00:01:43]} e4+ {[%clk 00:27:02]}
{[%emt 00:00:30]} 50. Kf2 {[%clk 00:39:01]} {[%emt 00:00:40]} Kd3 {[%clk
00:26:12]} {[%emt 00:01:20]} 51. Ke1 {[%clk 00:39:13]} {[%emt 00:00:18]} Ke3
{[%clk 00:26:00]} {[%emt 00:00:42]} 52. Bh7 {[%clk 00:39:08]} {[%emt 00:00:35]}
Kf4 {[%clk 00:25:03]} {[%emt 00:01:26]} 53. Kd2 {[%clk 00:38:52]} {[%emt
00:00:47]} Nb5 {[%clk 00:24:39]} {[%emt 00:00:54]} 54. Bg8 {[%clk 00:38:10]}
{[%emt 00:01:13]} Nd6 {[%clk 00:24:55]} {[%emt 00:00:13]} 55. Ke2 {[%clk
00:37:54]} {[%emt 00:00:46]} Kxg4 {[%clk 00:24:58]} {[%emt 00:00:28]} 56. Ke3
{[%clk 00:38:04]} {[%emt 00:00:21]} Kg3 {[%clk 00:24:33]} {[%emt 00:00:54]} 57.
Bxf7 {[%clk 00:38:07]} {[%emt 00:00:27]} Nxf7 {[%clk 00:24:50]} {[%emt
00:00:12]} 58. Kxe4 {[%clk 00:38:33]} {[%emt 00:00:04]} Kxg2 {[%clk 00:24:58]}
{[%emt 00:00:23]} 59. Kf5 {[%clk 00:38:59]} {[%emt 00:00:04]} Kg3 {[%clk
00:23:31]} {[%emt 00:01:57]} 0-1

[Event "Mistrovství Čech mládeže 2023 - HD16"]
[Site "Harrachov, Czech Republic"]
[Date "2023.10.28"]
[Round "9.13"]
[White "Langmaier, Michal"]
[Black "Meca, Viktor"]
[Result "1/2-1/2"]
[TimeControl "90m + 30s"]
[WhiteElo "1697"]
[BlackElo "1559"]

1. c4 {[%clk 01:30:50]} {[%emt 00:00:09]} e5 {[%clk 01:30:42]} {[%emt
00:00:18]} 2. Nc3 {[%clk 01:31:06]} {[%emt 00:00:14]} Nf6 {[%clk 01:30:46]}
{[%emt 00:00:26]} 3. g3 {[%clk 01:30:49]} {[%emt 00:00:47]} d5 {[%clk
01:30:24]} {[%emt 00:00:51]} 4. cxd5 {[%clk 01:30:07]} {[%emt 00:01:13]} Nxd5
{[%clk 01:30:44]} {[%emt 00:00:10]} 5. Bg2 {[%clk 01:30:30]} {[%emt 00:00:06]}
Nb6 {[%clk 01:30:02]} {[%emt 00:01:13]} 6. d3 {[%clk 01:29:36]} {[%emt
00:01:24]} Be7 {[%clk 01:26:50]} {[%emt 00:03:42]} 7. Nf3 {[%clk 01:28:49]}
{[%emt 00:01:17]} Nc6 {[%clk 01:27:00]} {[%emt 00:00:20]} 8. O-O {[%clk
01:28:38]} {[%emt 00:00:41]} O-O {[%clk 01:26:47]} {[%emt 00:00:43]} 9. Bd2
{[%clk 01:25:55]} {[%emt 00:03:14]} Be6 {[%clk 01:23:30]} {[%emt 00:03:45]} 10.
Rc1 {[%clk 01:23:12]} {[%emt 00:03:14]} f6 {[%clk 01:14:40]} {[%emt 00:09:21]}
11. Ne4 {[%clk 01:17:51]} {[%emt 00:05:51]} Qd7 {[%clk 01:05:03]} {[%emt
00:10:06]} 12. Qc2 {[%clk 01:13:20]} {[%emt 00:05:01]} Bh3 {[%clk 00:59:41]}
{[%emt 00:05:51]} 13. Nc5 {[%clk 01:10:06]} {[%emt 00:03:45]} Bxc5 {[%clk
00:59:22]} {[%emt 00:00:49]} 14. Qxc5 {[%clk 01:10:28]} {[%emt 00:00:08]} Bxg2
{[%clk 00:59:39]} {[%emt 00:00:13]} 15. Kxg2 {[%clk 01:10:55]} {[%emt
00:00:04]} Rfd8 {[%clk 00:45:38]} {[%emt 00:14:30]} 16. Be3 {[%clk 01:05:18]}
{[%emt 00:06:07]} Qd5 {[%clk 00:35:18]} {[%emt 00:10:51]} 17. Qxd5+ {[%clk
01:01:15]} {[%emt 00:04:34]} Nxd5 {[%clk 00:35:38]} {[%emt 00:00:09]} 18. Bc5
{[%clk 01:01:40]} {[%emt 00:00:05]} Rd7 {[%clk 00:30:34]} {[%emt 00:05:35]} 19.
Nd2 {[%clk 00:59:37]} {[%emt 00:02:33]} Rc8 {[%clk 00:26:14]} {[%emt 00:04:50]}
20. Nc4 {[%clk 00:55:31]} {[%emt 00:04:36]} b6 {[%clk 00:25:50]} {[%emt
00:00:54]} 21. Ba3 {[%clk 00:55:27]} {[%emt 00:00:33]} Nd4 {[%clk 00:25:44]}
{[%emt 00:00:36]} 22. e4 {[%clk 00:50:42]} {[%emt 00:05:15]} Ne7 {[%clk
00:23:56]} {[%emt 00:02:18]} 23. Bxe7 {[%clk 00:51:33]} {[%emt 00:00:09]} Rxe7
{[%clk 00:24:47]} {[%emt 00:00:09]} 24. Ne3 {[%clk 00:50:09]} {[%emt 00:01:53]}
Rd8 {[%clk 00:21:20]} {[%emt 00:03:56]} 25. Nd5 {[%clk 00:49:23]} {[%emt
00:01:17]} Red7 {[%clk 00:21:29]} {[%emt 00:00:22]} 26. Nxc7 {[%clk 00:47:37]}
{[%emt 00:02:16]} Ne2 {[%clk 00:20:21]} {[%emt 00:01:37]} 27. Rc2 {[%clk
00:46:13]} {[%emt 00:01:54]} Rc8 {[%clk 00:18:40]} {[%emt 00:02:12]} 28. Rxe2
{[%clk 00:46:36]} {[%emt 00:00:07]} Rdxc7 {[%clk 00:18:58]} {[%emt 00:00:13]}
29. Rd2 {[%clk 00:46:38]} {[%emt 00:00:27]} Rd7 {[%clk 00:18:28]} {[%emt
00:01:00]} 30. Rfd1 {[%clk 00:46:08]} {[%emt 00:01:00]} Rd4 {[%clk 00:18:43]}
{[%emt 00:00:14]} 31. f4 {[%clk 00:45:00]} {[%emt 00:01:38]} Kf7 {[%clk
00:16:19]} {[%emt 00:02:54]} 32. Kf3 {[%clk 00:43:57]} {[%emt 00:01:33]} Ke6
{[%clk 00:12:36]} {[%emt 00:04:13]} 33. Ke3 {[%clk 00:44:19]} {[%emt 00:00:08]}
Rc7 {[%clk 00:10:52]} {[%emt 00:02:14]} 34. Rf1 {[%clk 00:41:48]} {[%emt
00:03:00]} Rc8 {[%clk 00:09:31]} {[%emt 00:01:52]} 35. fxe5 {[%clk 00:40:15]}
{[%emt 00:02:03]} fxe5 {[%clk 00:09:54]} {[%emt 00:00:06]} 36. Rdd1 {[%clk
00:31:09]} {[%emt 00:09:34]} Rcd8 {[%clk 00:09:48]} {[%emt 00:00:38]} 37. Rf2
{[%clk 00:28:55]} {[%emt 00:02:44]} Rc8 {[%clk 00:08:12]} {[%emt 00:02:07]}
1/2-1/2

[Event "Mistrovství Čech mládeže 2023 - HD16"]
[Site "Harrachov, Czech Republic"]
[Date "2023.10.28"]
[Round "9.14"]
[White "Barták, Josef"]
[Black "Martinkovič, Adam"]
[Result "1-0"]
[TimeControl "90m + 30s"]
[WhiteElo "1476"]
[BlackElo "1680"]

1. e4 {[%clk 01:30:56]} {[%emt 00:00:04]} c6 {[%clk 01:24:48]} {[%emt
00:06:13]} 2. c4 {[%clk 01:31:21]} {[%emt 00:00:05]} d5 {[%clk 01:25:03]}
{[%emt 00:00:15]} 3. exd5 {[%clk 01:31:45]} {[%emt 00:00:05]} cxd5 {[%clk
01:25:26]} {[%emt 00:00:08]} 4. cxd5 {[%clk 01:32:11]} {[%emt 00:00:04]} Nf6
{[%clk 01:24:55]} {[%emt 00:01:00]} 5. Nc3 {[%clk 01:31:55]} {[%emt 00:00:47]}
Nxd5 {[%clk 01:24:35]} {[%emt 00:00:51]} 6. d4 {[%clk 01:32:19]} {[%emt
00:00:06]} e6 {[%clk 01:24:46]} {[%emt 00:00:19]} 7. Nf3 {[%clk 01:32:31]}
{[%emt 00:00:18]} Nc6 {[%clk 01:24:41]} {[%emt 00:00:35]} 8. Bd3 {[%clk
01:31:59]} {[%emt 00:01:02]} Be7 {[%clk 01:24:38]} {[%emt 00:00:34]} 9. O-O
{[%clk 01:31:33]} {[%emt 00:00:56]} O-O {[%clk 01:24:53]} {[%emt 00:00:15]} 10.
a3 {[%clk 01:31:20]} {[%emt 00:00:44]} Re8 {[%clk 01:22:11]} {[%emt 00:03:12]}
11. Bc2 {[%clk 01:26:52]} {[%emt 00:04:58]} Bf6 {[%clk 01:19:41]} {[%emt
00:02:59]} 12. Qd3 {[%clk 01:26:36]} {[%emt 00:00:46]} g6 {[%clk 01:19:55]}
{[%emt 00:00:16]} 13. Re1 {[%clk 01:22:14]} {[%emt 00:04:52]} Nce7 {[%clk
01:17:52]} {[%emt 00:02:33]} 14. Bg5 {[%clk 01:20:03]} {[%emt 00:02:40]} Bg7
{[%clk 01:15:47]} {[%emt 00:02:35]} 15. Rac1 {[%clk 01:03:04]} {[%emt
00:17:29]} Bd7 {[%clk 01:12:04]} {[%emt 00:04:14]} 16. Ne4 {[%clk 00:49:50]}
{[%emt 00:13:44]} Bc6 {[%clk 01:09:22]} {[%emt 00:03:11]} 17. b4 {[%clk
00:49:24]} {[%emt 00:00:56]} a6 {[%clk 01:09:24]} {[%emt 00:00:28]} 18. Nc5
{[%clk 00:49:05]} {[%emt 00:00:50]} Bb5 {[%clk 01:06:11]} {[%emt 00:03:43]} 19.
Qd2 {[%clk 00:47:31]} {[%emt 00:02:04]} b6 {[%clk 01:06:03]} {[%emt 00:00:39]}
20. Ne4 {[%clk 00:45:30]} {[%emt 00:02:29]} Qd7 {[%clk 01:05:39]} {[%emt
00:00:55]} 21. Bb3 {[%clk 00:45:03]} {[%emt 00:00:57]} Rec8 {[%clk 01:04:44]}
{[%emt 00:01:25]} 22. Ne5 {[%clk 00:41:52]} {[%emt 00:03:41]} Bxe5 {[%clk
00:56:39]} {[%emt 00:08:36]} 23. dxe5 {[%clk 00:38:37]} {[%emt 00:03:46]} Rxc1
{[%clk 00:55:05]} {[%emt 00:02:03]} 24. Rxc1 {[%clk 00:37:44]} {[%emt
00:01:23]} Kf8 {[%clk 00:51:18]} {[%emt 00:04:17]} 25. Bxe7+ {[%clk 00:21:11]}
{[%emt 00:17:03]} Qxe7 {[%clk 00:49:19]} {[%emt 00:02:28]} 26. Qh6+ {[%clk
00:21:39]} {[%emt 00:00:29]} Ke8 {[%clk 00:49:46]} {[%emt 00:00:35]} 27. Qxh7
{[%clk 00:16:58]} {[%emt 00:05:12]} Kd8 {[%clk 00:49:13]} {[%emt 00:01:03]} 28.
Nd6 {[%clk 00:11:27]} {[%emt 00:05:59]} Be8 {[%clk 00:49:11]} {[%emt 00:00:33]}
29. Rd1 {[%clk 00:10:34]} {[%emt 00:01:23]} Kc7 {[%clk 00:48:58]} {[%emt
00:00:44]} 30. Bxd5 {[%clk 00:09:09]} {[%emt 00:01:55]} exd5 {[%clk 00:49:21]}
{[%emt 00:00:07]} 31. Rxd5 {[%clk 00:08:59]} {[%emt 00:00:40]} Rd8 {[%clk
00:49:15]} {[%emt 00:00:35]} 32. Nxe8+ {[%clk 00:08:05]} {[%emt 00:01:25]} Qxe8
{[%clk 00:49:30]} {[%emt 00:00:15]} 33. Rxd8 {[%clk 00:08:17]} {[%emt
00:00:18]} Kxd8 {[%clk 00:49:53]} {[%emt 00:00:06]} 34. Qh4+ {[%clk 00:08:24]}
{[%emt 00:00:23]} Kc7 {[%clk 00:49:59]} {[%emt 00:00:25]} 35. Qc4+ {[%clk
00:08:17]} {[%emt 00:00:37]} Kb7 {[%clk 00:50:15]} {[%emt 00:00:14]} 36. f4
{[%clk 00:06:24]} {[%emt 00:02:23]} Qd7 {[%clk 00:49:55]} {[%emt 00:00:50]} 37.
h3 {[%clk 00:06:16]} {[%emt 00:00:37]} Ka7 {[%clk 00:49:29]} {[%emt 00:00:57]}
38. Kh2 {[%clk 00:05:15]} {[%emt 00:01:31]} Kb7 {[%clk 00:49:22]} {[%emt
00:00:37]} 39. Qb3 {[%clk 00:05:18]} {[%emt 00:00:27]} Ka7 {[%clk 00:48:51]}
{[%emt 00:01:02]} 40. a4 {[%clk 00:04:59]} {[%emt 00:00:48]} Qe7 {[%clk
00:48:52]} {[%emt 00:00:28]} 41. Qd5 {[%clk 00:03:45]} {[%emt 00:01:44]} Qc7
{[%clk 00:48:31]} {[%emt 00:00:52]} 42. Qd6 {[%clk 00:02:55]} {[%emt 00:01:20]}
Qb7 {[%clk 00:48:33]} {[%emt 00:00:28]} 43. a5 {[%clk 00:02:49]} {[%emt
00:00:36]} bxa5 {[%clk 00:48:51]} {[%emt 00:00:12]} 44. bxa5 {[%clk 00:03:09]}
{[%emt 00:00:09]} Ka8 {[%clk 00:49:04]} {[%emt 00:00:17]} 45. Qd3 {[%clk
00:01:21]} {[%emt 00:02:18]} Ka7 {[%clk 00:49:15]} {[%emt 00:00:19]} 46. Qe3+
{[%clk 00:01:34]} {[%emt 00:00:18]} Kb8 {[%clk 00:49:29]} {[%emt 00:00:16]} 47.
Qc3 {[%clk 00:01:15]} {[%emt 00:00:48]} Ka7 {[%clk 00:49:25]} {[%emt 00:00:34]}
48. g4 {[%clk 00:01:19]} {[%emt 00:00:26]} Qe4 {[%clk 00:48:44]} {[%emt
00:01:11]} 49. Kg3 {[%clk 00:01:38]} {[%emt 00:00:10]} Kb8 {[%clk 00:48:32]}
{[%emt 00:00:42]} 50. Qb3+ {[%clk 00:01:42]} {[%emt 00:00:27]} Ka7 {[%clk
00:48:38]} {[%emt 00:00:24]} 51. Qxf7+ {[%clk 00:00:53]} Ka8 {[%clk 00:48:54]}
{[%emt 00:01:32]} 52. Qe8+ {[%clk 00:01:16]} Ka7 {[%clk 00:49:15]} {[%emt
00:00:17]} 53. Qd7+ {[%clk 00:01:41]} Ka8 {[%clk 00:49:36]} {[%emt 00:00:15]}
54. Qc8+ {[%clk 00:02:04]} Ka7 {[%clk 00:49:58]} {[%emt 00:00:15]} 55. Qc3
{[%clk 00:02:11]} Kb8 {[%clk 00:50:05]} {[%emt 00:00:45]} 56. e6 {[%clk
00:01:56]} {[%emt 00:00:46]} Ka7 {[%clk 00:49:57]} {[%emt 00:00:38]} 57. Qc7+
{[%clk 00:01:39]} {[%emt 00:00:46]} Ka8 {[%clk 00:50:07]} {[%emt 00:00:21]} 58.
Qe5 {[%clk 00:01:57]} {[%emt 00:00:12]} Qd3+ {[%clk 00:49:57]} {[%emt
00:00:40]} 59. Kh4 {[%clk 00:02:15]} {[%emt 00:00:12]} g5+ {[%clk 00:49:58]}
{[%emt 00:00:29]} 60. Kxg5 {[%clk 00:02:32]} {[%emt 00:00:13]} Qc2 {[%clk
00:49:47]} {[%emt 00:00:40]} 61. e7 {[%clk 00:02:39]} {[%emt 00:00:25]} Ka7
{[%clk 00:48:54]} {[%emt 00:01:23]} 62. e8=Q {[%clk 00:02:54]} {[%emt
00:00:15]} Qc8 {[%clk 00:48:42]} {[%emt 00:00:42]} 63. Q5e7+ {[%clk 00:03:10]}
1-0

[Event "Mistrovství Čech mládeže 2023 - HD16"]
[Site "Harrachov, Czech Republic"]
[Date "2023.10.28"]
[Round "9.15"]
[White "Hrubý, Filip"]
[Black "Mrázek, Adam"]
[Result "1-0"]
[TimeControl "90m + 30s"]
[WhiteElo "1386"]
[BlackElo "1669"]

1. e4 {[%clk 01:30:54]} {[%emt 00:00:04]} g6 {[%clk 01:30:48]} {[%emt
00:00:11]} 2. d4 {[%clk 01:30:51]} {[%emt 00:00:34]} Bg7 {[%clk 01:31:10]}
{[%emt 00:00:08]} 3. f4 {[%clk 01:29:17]} {[%emt 00:02:04]} d6 {[%clk
01:31:32]} {[%emt 00:00:09]} 4. Nf3 {[%clk 01:29:26]} {[%emt 00:00:20]} Nf6
{[%clk 01:31:25]} {[%emt 00:00:37]} 5. Nc3 {[%clk 01:29:08]} {[%emt 00:00:48]}
O-O {[%clk 01:31:22]} {[%emt 00:00:34]} 6. Bd3 {[%clk 01:24:40]} {[%emt
00:04:58]} Nc6 {[%clk 01:27:28]} {[%emt 00:04:24]} 7. e5 {[%clk 01:20:45]}
{[%emt 00:04:24]} dxe5 {[%clk 01:25:55]} {[%emt 00:02:03]} 8. dxe5 {[%clk
01:21:05]} {[%emt 00:00:09]} Nd5 {[%clk 01:25:21]} {[%emt 00:01:06]} 9. Nxd5
{[%clk 01:16:53]} {[%emt 00:04:41]} Qxd5 {[%clk 01:25:32]} {[%emt 00:00:20]} 10.
Be3 {[%clk 01:15:09]} {[%emt 00:02:13]} Nb8 {[%clk 01:11:55]} {[%emt 00:14:07]}
11. Qe2 {[%clk 01:13:36]} {[%emt 00:02:03]} c5 {[%clk 01:12:06]} {[%emt
00:00:20]} 12. Bc4 {[%clk 01:11:48]} {[%emt 00:02:18]} Qc6 {[%clk 01:12:21]}
{[%emt 00:00:15]} 13. O-O-O {[%clk 01:11:31]} {[%emt 00:00:46]} Qc7 {[%clk
01:02:30]} {[%emt 00:10:22]} 14. h4 {[%clk 01:11:39]} {[%emt 00:00:22]} h5
{[%clk 01:02:33]} {[%emt 00:00:27]} 15. Nh2 {[%clk 01:07:23]} {[%emt 00:04:46]}
Nc6 {[%clk 00:57:48]} {[%emt 00:05:16]} 16. g4 {[%clk 01:04:48]} {[%emt
00:03:04]} hxg4 {[%clk 00:57:52]} {[%emt 00:00:28]} 17. Nxg4 {[%clk 01:05:02]}
{[%emt 00:00:16]} b5 {[%clk 00:50:53]} {[%emt 00:07:28]} 18. Bxb5 {[%clk
01:01:51]} {[%emt 00:03:40]} Rb8 {[%clk 00:49:59]} {[%emt 00:01:24]} 19. Bc4
{[%clk 00:56:36]} {[%emt 00:05:45]} Qb6 {[%clk 00:48:06]} {[%emt 00:02:24]} 20.
b3 {[%clk 00:54:43]} {[%emt 00:02:23]} Qb4 {[%clk 00:44:10]} {[%emt 00:04:26]}
21. Nf2 {[%clk 00:48:41]} {[%emt 00:06:32]} Qa3+ {[%clk 00:34:44]} {[%emt
00:09:56]} 22. Kb1 {[%clk 00:48:19]} {[%emt 00:00:51]} Nb4 {[%clk 00:33:15]}
{[%emt 00:02:00]} 23. h5 {[%clk 00:41:11]} {[%emt 00:07:38]} Bf5 {[%clk
00:18:27]} {[%emt 00:15:19]} 24. Nd3 {[%clk 00:36:49]} {[%emt 00:04:50]} Qxa2+
{[%clk 00:14:27]} {[%emt 00:04:30]} 25. Kc1 {[%clk 00:37:10]} {[%emt 00:00:09]}
Rfd8 {[%clk 00:14:48]} {[%emt 00:00:10]} 26. Rh2 {[%clk 00:32:29]} {[%emt
00:05:10]} Qa5 {[%clk 00:05:56]} {[%emt 00:09:23]} 27. Kb2 {[%clk 00:29:50]}
{[%emt 00:03:09]} Qa2+ {[%clk 00:05:46]} {[%emt 00:00:41]} 28. Kc1 {[%clk
00:30:09]} {[%emt 00:00:11]} Qa1+ {[%clk 00:05:46]} {[%emt 00:00:31]} 29. Kd2
{[%clk 00:30:31]} {[%emt 00:00:06]} Qa5 {[%clk 00:06:09]} {[%emt 00:00:07]} 30.
Kc1 {[%clk 00:30:06]} {[%emt 00:00:55]} Na2+ {[%clk 00:06:14]} {[%emt
00:00:26]} 31. Kb2 {[%clk 00:29:43]} {[%emt 00:00:52]} Nc3 {[%clk 00:05:12]}
{[%emt 00:01:33]} 32. Bd2 {[%clk 00:27:40]} {[%emt 00:02:33]} Nxd1+ {[%clk
00:04:05]} {[%emt 00:01:38]} 33. Qxd1 {[%clk 00:28:02]} {[%emt 00:00:07]} Qc7
{[%clk 00:04:26]} {[%emt 00:00:08]} 34. Bc3 {[%clk 00:24:39]} {[%emt 00:03:53]}
e6 {[%clk 00:01:22]} {[%emt 00:03:36]} 35. Qe1 {[%clk 00:22:25]} {[%emt
00:02:43]} Rd7 {[%clk 00:01:23]} {[%emt 00:00:30]} 36. Qg3 {[%clk 00:21:31]}
{[%emt 00:01:22]} a5 {[%clk 00:00:40]} {[%emt 00:01:14]} 37. hxg6 {[%clk
00:20:07]} {[%emt 00:01:54]} fxg6 {[%clk 00:00:57]} {[%emt 00:00:13]} 38. Nf2
{[%clk 00:19:24]} {[%emt 00:01:13]} a4 {[%clk 00:00:00]} {[%emt 00:00:57]} 1-0